Cogmind - Beta 14 *** ADVENTURER MODE // 2025.03.11 @ 00:38:22 Player: EN-G1N Result: Self-destructed Performance ------------- Evolutions (3) 1500 Regions Visited (5) 1000 Robots Destroyed (39) 195 Value Destroyed (1091) 1091 Prototype IDs (0) 0 Alien Tech Used (0) 0 Bonus (95) 95 TOTAL SCORE: 3881 Bonus ------- Follower Combat Kills 95 Cogmind --------- Core Integrity 696/700 Matter 290/300 Energy 340/340 System Corruption 1% Temperature Cool (0) Movement Treading (162) Location -7/Factory Parts ------- > --- POWER (2) -------- Improved Deuterium Engine Light Angular Momentum Engine > --- PROPULSION (4) --- Light Treads Light Treads Light Treads Armored Treads > --- UTILITY (5) ------ Cooling System Large Storage Unit Targeting Computer Propulsion Shielding Improved Light Armor Plating > --- WEAPON (2) ------- Plasma Cannon Plasma Cannon > --- INVENTORY (15) --- Light Treads Light Treads Large Matter Pod (150) Visual Processing Unit Improved Sensor Array Signal Interpreter Improved Signal Interpreter Advanced Terrain Scan Processor Improved Target Analyzer Core Analyzer Advanced ECM Suite Propulsion Shielding Hardened Light Armor Plating Heavy Particle Cannon Heavy Particle Cannon Peak State ------------ > --- POWER ------------ Improved Deuterium Engine Light Angular Momentum Engine > --- PROPULSION ------- Light Treads Light Treads Light Treads Armored Treads > --- UTILITY ---------- Cooling System Large Storage Unit Targeting Computer Propulsion Shielding Improved Light Armor Plating > --- WEAPON ----------- Plasma Cannon Plasma Cannon > --- INVENTORY -------- Light Treads Light Treads Large Matter Pod Visual Processing Unit Signal Interpreter Improved Signal Interpreter Advanced Terrain Scan Processor Core Analyzer Advanced ECM Suite Propulsion Shielding Hardened Light Armor Plating Heavy Particle Cannon Heavy Particle Cannon Great Maul Blade Trap [Rating: 34] Favorites ----------- Power Light Nuclear Core Engine Improved Deuterium Engine Power Core Light Nuclear Core Propulsion Light Treads Treads Light Treads Utility Large Storage Unit Device Cooling System Storage Large Storage Unit Processor Targeting Computer Protection Medium Armor Plating Weapon Heavy Particle Cannon Energy Gun Medium Laser Energy Cannon Heavy Particle Cannon Ballistic Gun Light Assault Rifle Build | -11 -10 -9 -9 -8 -7 ------- Run | Yrd Mat Mat Min Mat Fac Slots Evolved 6 | . . 2 . 2 2 Power 1 | . . . . . 1 Propulsion 2 | . . 2 . . . Utility 3 | . . . . 2 1 Weapon . | . . . . . . Parts Attached 31 | 5 6 7 1 6 6 Power 6 | . 2 . 1 . 3 Engine 3 | . 1 . . . 2 Core 3 | . 1 . 1 . 1 Reactor . | . . . . . . Propulsion 7 | 2 . 3 . 1 1 Treads 7 | 2 . 3 . 1 1 Leg . | . . . . . . Wheel . | . . . . . . Hover . | . . . . . . Flight . | . . . . . . Utility 9 | 1 2 2 . 2 2 Device 2 | . 1 1 . . . Storage 2 | 1 1 . . . . Processor 1 | . . . . 1 . Hackware . | . . . . . . Protection 4 | . . 1 . 1 2 Artifact . | . . . . . . Weapon 9 | 2 2 2 . 3 . Energy Gun 1 | 1 . . . . . Energy Cannon 7 | . 2 2 . 3 . Ballistic Gun 1 | 1 . . . . . Ballistic Cannon . | . . . . . . Launcher . | . . . . . . Special Weapon . | . . . . . . Impact Weapon . | . . . . . . Slashing Weapon . | . . . . . . Piercing Weapon . | . . . . . . Special Melee Weapon . | . . . . . . Unidentified Prototypes . | . . . . . . Parts Lost . | . . . . . . Power . | . . . . . . Propulsion . | . . . . . . Utility . | . . . . . . Weapon . | . . . . . . Highest Loss Streak . | . . . . . . To Critical Strikes . | . . . . . . Average Slot Usage (%) 99 | . 98 99 100 100 99 Engine 2 | . 5 . . . 6 Core 8 | . 7 11 11 9 7 Treads 35 | . 28 43 44 36 29 Device 10 | . 14 10 11 9 7 Storage 10 | . 14 11 11 9 7 Processor 2 | . . . . 9 7 Protection 4 | . . . . 9 15 Energy Cannon 21 | . 27 22 22 18 15 Peak Build Rating 34 | 5 12 18 19 25 34 Average Rating 19 | 4 10 15 18 23 31 On Entrance 13 | . 5 12 18 18 25 Naked Turns . | . . . . . . Heaviest Build 59 | 8 34 39 39 48 59 Greatest Support 80 | 40 40 80 80 80 80 Greatest Overweight (x) . | . . . . . . Average Overweight (x) . | . . . . . . Largest Inventory Capacity 15 | 8 15 15 15 15 15 Average Capacity 13 | 7 10 15 15 15 15 Most Carried 15 | 5 9 15 15 15 15 Average Carried 11 | . 6 11 14 14 14 Final Capacity 15 | 8 15 15 15 15 15 Final Carried 15 | 1 9 15 15 15 15 Class Distribution -------------------- 93% | Mutant 6% | Scavenger-Mutant Dominant Class ---------------- Mutant | -10/Materials Mutant | -9/Materials Mutant | -9/Mines Mutant | -8/Materials Mutant | -7/Factory Resources | -11 -10 -9 -9 -8 -7 ----------- Run | Yrd Mat Mat Min Mat Fac Matter Collected 716 | 181 341 76 10 58 50 Remotely . | . . . . . . Salvage Created 1390 | 36 251 629 . 100 374 Parts 92 | 5 23 38 . 6 20 Haulers Intercepted . | . . . . . . Recyclers Shooed 1 | . . . . 1 . Parts Field Recycled . | . . . . . . Retrieved Matter . | . . . . . . Parts Self-Destructed . | . . . . . . Prevented . | . . . . . . Kills | -11 -10 -9 -9 -8 -7 ------- Run | Yrd Mat Mat Min Mat Fac Combat Hostiles Destroyed 30 | . 7 15 . 3 5 Cannons 28 | . 7 14 . 3 4 Classes Destroyed 11 | 1 3 4 . 1 2 Worker 2 | . 1 . . 1 . Tunneler 2 | 2 . . . . . Recycler 1 | . . . . . 1 Watcher 4 | . . 3 . . 1 Swarmer 9 | . 3 4 . 2 . Grunt 13 | . 4 7 . . 2 Brawler 1 | . . 1 . . . Duelist 1 | . . 1 . . . Sentry 3 | . . 2 . . 1 Hunter 1 | . . . . 1 . Programmer 2 | . . . . . 2 Best Kill Streak 9 | 2 3 9 . 2 2 Combat Bots Only 7 | . 3 7 . 2 2 Max Kills in Single Turn 2 | 1 1 2 . 1 1 Gunslinging . | . . . . . . Exploded . | . . . . . . Melee . | . . . . . . Uniques/NPCs Destroyed . | . . . . . . Combat | -11 -10 -9 -9 -8 -7 -------- Run | Yrd Mat Mat Min Mat Fac Hostile Shots Fired 91 | . 14 42 1 2 32 Missed 31 | . 5 8 1 1 16 Damage Taken 549 | . 64 363 . 6 116 Core 32 | . 6 22 . . 4 Absorbed by Shields . | . . . . . . Redirected to Shielding 14 | . . . . . 14 Ignored by Resistances 172 | . 20 110 . 2 40 Regen/Repaired (Parts) 94 | . . . . . 94 Core Remaining (%) 97 | 100 97 . 94 100 . Volleys Fired 70 | 6 13 29 4 3 15 Largest 2 | 2 2 2 2 2 2 Hottest 160 | 70 136 150 150 160 160 Shots Fired 140 | 12 26 58 8 6 30 Gun 12 | 12 . . . . . Cannon 128 | . 26 58 8 6 30 Launcher . | . . . . . . Special . | . . . . . . Kinetic 6 | 6 . . . . . Thermal 134 | 6 26 58 8 6 30 Explosive . | . . . . . . Electromagnetic . | . . . . . . Robot Hit Streak 23 | 8 9 23 6 3 19 Robot Miss Streak 3 | 1 3 2 3 1 1 Penetration Max . | . . . . . . Secondary Targets . | . . . . . . Shots Hit Robots 102 | 10 14 44 5 4 25 Core Hits 46 | 4 10 19 1 3 9 Critical Kills . | . . . . . . Critical Parts Destroyed . | . . . . . . Critical Strikes . | . . . . . . Melee Attacks . | . . . . . . Impact . | . . . . . . Slashing . | . . . . . . Piercing . | . . . . . . Sneak Attacks . | . . . . . . Combat Hostiles . | . . . . . . Follow-up Attacks . | . . . . . . Damage Inflicted 2530 | 101 296 1142 141 136 714 Guns 101 | 101 . . . . . Cannons 2350 | . 291 1132 125 110 692 Explosions . | . . . . . . Melee . | . . . . . . Ramming 79 | . 5 10 16 26 22 Kinetic 38 | 38 . . . . . Thermal 2413 | 63 291 1132 125 110 692 Explosive . | . . . . . . Electromagnetic . | . . . . . . Impact . | . . . . . . Slashing . | . . . . . . Piercing . | . . . . . . Highest Corruption 1 | . . . . . 1 Average Corruption 1 | . . . . . 1 Corruption Purged . | . . . . . . Corruption Blocked . | . . . . . . Effects 3 | . . . . . 3 Message Errors 2 | . . . . . 2 Data Loss (major) 1 | . . . . . 1 Overload Shots . | . . . . . . Overflow Damage 60 | . . 2 . 25 33 Projectiles 60 | . . 2 . 25 33 Explosions . | . . . . . . Melee . | . . . . . . Knockbacks 1 | . . . . . 1 Impact 1 | . . . . . 1 Kinetic . | . . . . . . Secondary . | . . . . . . Self-Inflicted Damage . | . . . . . . Shots . | . . . . . . Rammed 12 | . 1 2 3 4 2 Targets Rammed 12 | . 1 2 3 4 2 Kicked . | . . . . . . Crushed . | . . . . . . Highest Temperature 282 | 20 282 234 42 60 168 Average Temperature 76 | 15 114 73 18 27 59 Received Heat Transfer 195 | . 15 132 . . 48 Effects 1 | . 1 . . . . Energy Bleed 1 | . 1 . . . . Siege Activations . | . . . . . . Robots Corrupted . | . . . . . . Combat Hostiles . | . . . . . . Parts Fried . | . . . . . . Impact Corruptions . | . . . . . . Robots Melted 2 | . . 1 . . 1 Combat Hostiles 2 | . . 1 . . 1 Parts Melted 11 | . . 3 . . 8 Heat Transferred 4027 | 185 518 1702 185 187 1250 Parts Sabotaged . | . . . . . . Parts Stolen . | . . . . . . Parts Stripped . | . . . . . . Power Chain Reactions . | . . . . . . Alert | -11 -10 -9 -9 -8 -7 ------- Run | Yrd Mat Mat Min Mat Fac Peak Influence 306 | 10 141 306 168 88 133 Initial 86 | . 5 5 86 . . Average 58 | 1 69 133 53 15 41 Maximum Alert Level 1 | . . 1 . . . Low Security (%) 94 | 100 100 59 100 100 100 Level 1 5 | . . 40 . . . Level 2 . | . . . . . . Level 3 . | . . . . . . Level 4 . | . . . . . . Level 5 . | . . . . . . High Security . | . . . . . . Max Security . | . . . . . . Squads Dispatched 7 | . . 2 1 1 3 Investigation 1 | . . 1 . . . Extermination 2 | . . . . . 2 Reinforcement 2 | . . 1 . 1 . Assault 1 | . . . 1 . . Garrison 1 | . . . . . 1 Intercept . | . . . . . . Searches Triggered . | . . . . . . Construction Impeded . | . . . . . . Haulers Reinforced . | . . . . . . Active Scanning Responses . | . . . . . . Cargo Convoy Interrupts . | . . . . . . Stealth | -11 -10 -9 -9 -8 -7 --------- Run | Yrd Mat Mat Min Mat Fac Distress Signals 6 | . 1 5 . . . Communications Jammed . | . . . . . . Distress Signals . | . . . . . . Times Spotted 52 | . 14 23 3 5 7 Peak Tracking Total 5 | . 4 5 2 3 2 Tactical Retreats 1 | . . . 1 . . Traps | -11 -10 -9 -9 -8 -7 ------- Run | Yrd Mat Mat Min Mat Fac Traps Triggered 4 | . 4 . . . . Indirectly . | . . . . . . Trap Hack Attempts . | . . . . . . Triggered . | . . . . . . Disarmed . | . . . . . . Reprogrammed . | . . . . . . Reused . | . . . . . . Traps Extracted . | . . . . . . Installed . | . . . . . . Triggered . | . . . . . . Most Traps Carried 2 | . . . 2 2 2 Machines | -11 -10 -9 -9 -8 -7 ---------- Run | Yrd Mat Mat Min Mat Fac Machines Disabled . | . . . . . . Max in Single Turn . | . . . . . . Machines Repaired . | . . . . . . Machines Dismantled . | . . . . . . Machines Sabotaged . | . . . . . . Overloaded Fab Kills . | . . . . . . Hacking | -11 -10 -9 -9 -8 -7 --------- Run | Yrd Mat Mat Min Mat Fac Machines Accessed 11 | . 4 2 . 2 3 Terminals 6 | . 3 1 . . 2 Fabricators . | . . . . . . Repair Stations 1 | . . . . . 1 Recycling Units 4 | . 1 1 . 2 . Scanalyzers . | . . . . . . Garrison Access . | . . . . . . Total Hacks 15 | . 5 4 . 2 4 Successful 12 | . 4 2 . 2 4 Failed 3 | . 1 2 . . . Catastrophic . | . . . . . . Database Lockouts . | . . . . . . Manual 6 | . 5 . . . 1 Terminals 7 | . 4 1 . . 2 Fabricators . | . . . . . . Repair Stations 2 | . . . . . 2 Recycling Units 6 | . 1 3 . 2 . Scanalyzers . | . . . . . . Garrison Access . | . . . . . . Terminal Hacks 6 | . 3 1 . . 2 Record 1 | . . . . . 1 Robot Analysis 5 | . 3 1 . . 1 Fabricator Hacks . | . . . . . . Repair Station Hacks 2 | . . . . . 2 Scan Component 1 | . . . . . 1 Repair 1 | . . . . . 1 Recycling Unit Hacks 4 | . 1 1 . 2 . Report Inventory 4 | . 1 1 . 2 . Scanalyzer . | . . . . . . Garrison Access Hacks . | . . . . . . Unauthorized Hacks . | . . . . . . Terminals . | . . . . . . Fabricators . | . . . . . . Repair Stations . | . . . . . . Recycling Units . | . . . . . . Scanalyzers . | . . . . . . Garrison Access . | . . . . . . Data Cores Recovered . | . . . . . . Used . | . . . . . . Hacking Detections 6 | . 2 1 . . 3 Full Trace Events 1 | . . 1 . . . Feedback Events . | . . . . . . Feedback Blocked . | . . . . . . Robot Schematics Acquired . | . . . . . . Robots Built . | . . . . . . Authchips . | . . . . . . Time . | . . . . . . Total Robot Build Rating . | . . . . . . Part Schematics Acquired . | . . . . . . Parts Built . | . . . . . . Authchips . | . . . . . . Time . | . . . . . . Total Part Build Rating . | . . . . . . Parts Repaired 1 | . . . . . 1 Time 26 | . . . . . 26 Parts Recycled . | . . . . . . Recycled Matter . | . . . . . . Retrieved Matter . | . . . . . . Retrieved Components . | . . . . . . Parts Scanalyzed . | . . . . . . Part Schematics Acquired . | . . . . . . Parts Damaged . | . . . . . . Bothacking | -11 -10 -9 -9 -8 -7 ------------ Run | Yrd Mat Mat Min Mat Fac Used RIF Installer . | . . . . . . Robots Hacked . | . . . . . . Non-combat . | . . . . . . Combat . | . . . . . . Robot Hacks Applied . | . . . . . . Relay Couplers Released 4 | . . . . . 4 Programmers 4 | . . . . . 4 Fabnet Peak Effective % . | . . . . . . Robots Rewired . | . . . . . . Allies Hacked 1 | . . . . . 1 Hacks Repelled . | . . . . . . Allies | -11 -10 -9 -9 -8 -7 -------- Run | Yrd Mat Mat Min Mat Fac Total Allies 6 | . . . 6 . . Largest Group 6 | . . . 6 5 5 Highest-Rated Group 110 | . . . 110 102 100 Highest-Rated Ally 31 | . . . 31 31 31 Total Orders 7 | . . . . 6 1 STAY 3 | . . . . 3 . GUARD 4 | . . . . 3 1 Ally Attacks 46 | . . . 18 7 21 Total Damage 572 | . . . 272 61 239 Kills 4 | . . . 3 . 1 Allies Corrupted . | . . . . . . Allies Melted . | . . . . . . Intel | -11 -10 -9 -9 -8 -7 ------- Run | Yrd Mat Mat Min Mat Fac Robot Analysis Total 4 | . 2 1 . . 1 Derelict Logs Recovered . | . . . . . . Drone Launches . | . . . . . . Drone Recoveries . | . . . . . . Exploration | -11 -10 -9 -9 -8 -7 ------------- Run | Yrd Mat Mat Min Mat Fac Turns Passed 3720 | 94 974 501 833 559 759 Spaces Moved 1960 | 53 533 189 507 271 407 Core 16 | 16 . . . . . Treads 1944 | 37 533 189 507 271 407 Legs . | . . . . . . Wheels . | . . . . . . Hover . | . . . . . . Flight . | . . . . . . Fastest Speed 50 | 50 160 160 160 160 162 Average Speed 159 | 126 160 160 160 161 162 Slowest Speed 163 | 160 160 160 160 162 163 Overloaded Moves . | . . . . . . Propulsion Burnouts . | . . . . . . Robots Hopped . | . . . . . . Cave-ins Triggered . | . . . . . . Exploration Rate (%) 34 | 3 66 20 83 26 10 Regions Visited 5 Branch Regions 1 Pre-discovered Areas . | . . . . . . Known Exits Taken . | . . . . . . Unknown Exits Taken 5 | 1 1 1 1 1 . Scrap Searched 2 | . . . 2 . . Spaces Dug . | . . . . . . Terrain Destroyed 9 | . . 4 3 2 . Melee . | . . . . . . Projectile 9 | . . 4 3 2 . AOE . | . . . . . . Terrain Rammed . | . . . . . . Walls Destroyed . | . . . . . . Machines Disabled . | . . . . . . Actions | -11 -10 -9 -9 -8 -7 --------- Run | Yrd Mat Mat Min Mat Fac Total 2417 | 69 630 332 523 385 478 Wait 266 | . 58 86 . 91 31 Move 1955 | 52 532 188 506 270 407 Hop . | . . . . . . Pick Up 50 | 6 14 13 4 5 8 Fast Attach 5 | . 1 . . 1 3 Attach 18 | 5 4 5 . 2 2 Detach 1 | . . 1 . . . Swap 8 | . 1 2 1 3 1 Drop 32 | . 6 6 5 6 9 Fire 70 | 6 13 29 4 3 15 Melee . | . . . . . . Ram . | . . . . . . Kick . | . . . . . . Crush 12 | . 1 2 3 4 2 Escape Stasis . | . . . . . . Rewire . | . . . . . . Trap . | . . . . . . Miscellaneous . | . . . . . . Route ------- -11/Scrapyard -10/Materials (discovered 2 exits: *Mat x2) -9/Materials -9/Mines (discovered 2 exits: *Mat / [*Exi]) -8/Materials -7/Factory History --------- Turn | Location | Event 12 | -11/Scrapyard | Discovered new exit (range 15) 95 | -11/Scrapyard | Entered Materials 306 | -10/Materials | Discovered new exit (range 12) 315 | -10/Materials | Build established: Mutant 603 | -10/Materials | Discovered new exit (range 16) 1069 | -10/Materials | Entered another Materials area 1069 | -9/Materials | Evolved 2 slots: Propulsion x2 1356 | -9/Materials | Destroyed 7 combat bots 1513 | -9/Materials | Discovered new exit (range 16) 1570 | -9/Materials | Entered Mines 1640 | -9/Mines | Met a Derelict bent on vengeance 1852 | -9/Mines | Met a Derelict testing a Signal Generator 1871 | -9/Mines | Found Signal Generator 2046 | -9/Mines | Found a hidden stash of uninstalled traps 2135 | -9/Mines | Assisted by bots powering up and referring to "LRC-V3" 2189 | -9/Mines | Deemed a non-threat by the Exiles lab entrance 2189 | -9/Mines | Discovered new exit (range 5) 2384 | -9/Mines | Discovered new exit (range 11) 2403 | -9/Mines | Entered Materials 2403 | -8/Materials | Accompanied by 5 allies 2403 | -8/Materials | Evolved 2 slots: Utility x2 2408 | -8/Materials | Led the pair of lost Derelicts to an unsafe place 2931 | -8/Materials | Discovered new exit (range 3) 2962 | -8/Materials | Entered Factory 2962 | -7/Factory | Accompanied by 5 allies 2962 | -7/Factory | Evolved 2 slots: Power x1, Utility x1 3493 | -7/Factory | Garrison activated, responded to threat 3713 | -7/Factory | Repaired Lgt. Treads 3721 | -7/Factory | Self-destructed Last Messages --------------- compactors. The process doubles as a convenient way to deal with intruders swallowed by a [Chute Trap]. 03662_ Dropped Great Maul. 03662_ Acquired Imp. Sensor Array. 03687_ Connecting with Repair Station... >>Scan(Lgt. Treads) Scanning Lgt. Treads... Ready to Repair: Lgt. Treads Rating: 1 Time: 26 >>Repair Repairing Lgt. Treads... ETC: 26 03712_ ALERT: Rogue bot located, Programmers report to Factory Zone 7F. 03713_ Repair station completes Lgt. Treads repairs. 03715_ Acquired Lgt. Treads. Map ----- +----------------------------------------------------+ | ??????# # #?# | | ??????# # #?######## | | ??????# ! + #####!#### | | ??????########### %/=!!% "T" | | ??????# # !*! | | ??????# # %!% | | ??????# """"" + | | ??????# """ ""T"" ##### # | | ??????# """ #####+########## | | ??????# """ ## #? | | ??????# ## #? | | ??????# """ """*""" ## #? | | ??????+ """ """%""" ## #? | | ??????# """ """ """ ## #? | | ??????# / ## #? | | ??????# ## #? | | ??????# = ## #? | | ??????# ## #? | | ??????######## ## #? | | ????#?########+### ## #? | | ????# # ## #? | | ????# """ """ # ########+####### | | ????# """ """ # | | ????# """ """ # | | ????# # " / | | ????# """ @ + """ / & | | ????# """ g # G | | ????# """ # """ | | ????# " " # " """ """ | | ????# "R" # """ """ ##### | | ????# """ # """ """ ####? | | ????# # """#? | | ????############## """ """ """#? | | ?????????????????# """ """ "#? | | ?????????????????# """ """ "F"#? | | ?????????????????# [!! """#? | | ?????????????????# [!% ####? | | ?????????????????# [ #???? | | ?????????????????####### #???? | | ???????????????????????# #???? | | ???????????????????????# #???? | | ???????????????????????# #???? | | ???????????????????????# #???? | | ???????????????????????# #???? | | ?????????????###########+## #???? | | ?????????????# # #???? | | ?????????????# # #???? | | ?????????????# #? #???? | | ?????????????# [ #? #???? | | ?????????????# " #? #???? | +----------------------------------------------------+ Best States ------------- Heat Dissipation 56 Energy Generation 29 Energy Capacity 350 Matter Stores 300 Matter Capacity 300 Sight Range 16 Terrain Scan Density 10 Armor Coverage 225 Resistance: KI 20 Resistance: TH 20 Resistance: EX 20 Resistance: EM 20 Resistance: I 20 Resistance: S 20 Resistance: P 20 Propulsion Shielding 33 Evasion (%) 50 Targeting Accuracy 5 Recoil Reduction 4 Offensive Hacking 10 Item Schematics ----------------- None Robot Schematics ------------------ None Fabricated ------------ Nothing Alien Tech Used ----------------- None Achievements -------------- None Challenges ------------ None Game ------ Seed NeutronSuperchargedBlade Manual? 0 Play Time 00:35:02 Cumulative 26.4 hours Start 2025.02.27 @ 22:55:01 End 2025.03.11 @ 00:38:22 Sessions 8 Manual Loads 0 Difficulty Adventurer Special Mode None Game No. 27 Rogue 0 Adventurer 27 Explorer 0 Win Type - Total 0 Types 0/0/0/0/0/0/0/0/0 Lore% 17 Gallery% 26 Achievement% 22 Wizard Run 0 Options --------- Layout 1 ASCII 0 Keyboard 0 Movement Mouse Keybinds 0 Fullscreen 1 Font 24/Smallcaps Map View 50x35 Zoom Use 0% Tactical HUD 1 Map Filters NONE Filters NONE Steam 1 RUN: a1f8c13a-3320-4ae7-b88c-b97111873070